fUST/lending_fUST_20240525
["ID","MTS","AMOUNT","RATE_DAILY","PERIOD"]
[327881884,1716576649604,-1124.78,0.00027671,13]
[327881885,1716576649614,-192.43,0.00027671,13]
[327881886,1716576649624,-500.0,0.00027671,13]
[327881887,1716576649635,-3640.27072653,0.000278,2]
[327881888,1716576649646,-500.0,0.00027945,14]
[327881889,1716576649659,-500.0,0.00027945,14]
[327881890,1716576649670,-516.99,0.00027945,14]
[327881891,1716576649680,-365.38,0.00027945,14]
[327881892,1716576649692,-500.0,0.00027945,14]
[327881893,1716576649701,-572.78,0.00027945,14]
[327881894,1716576649711,-500.0,0.00027945,14]
[327881895,1716576649721,-500.0,0.00027945,14]
[327881896,1716576649731,-1733.98,0.00027945,14]
[327881897,1716576649742,-500.0,0.00027945,14]
[327881898,1716576649754,-500.0,0.00027945,14]
[327881899,1716576649763,-500.0,0.00027945,14]
[327881900,1716576649773,-2950.1,0.00027945,14]
[327881901,1716576649784,-947.09,0.00027945,14]
[327881902,1716576649794,-1239.82,0.00027945,14]
[327881903,1716576649804,-500.0,0.00027945,14]
[327881904,1716576649813,-602.63,0.00027945,14]
[327881905,1716576649823,-511.33,0.00027945,14]
[327881906,1716576649833,-500.0,0.00027945,14]
[327881907,1716576649843,-641.33,0.00027945,14]
[327881908,1716576649853,-1229.24,0.00027945,14]
[327881909,1716576649864,-500.0,0.00027945,14]
[327881910,1716576649874,-3555.67,0.00027945,14]
[327881911,1716576649883,-500.0,0.00027945,14]
[327881912,1716576649894,-3409.17,0.00027945,14]
[327881913,1716576649905,-508.5,0.00027945,14]
[327881914,1716576649915,-500.0,0.00027945,14]
[327881915,1716576649925,-592.29,0.00027945,14]
[327881916,1716576649935,-1124.78,0.00027945,14]
[327881917,1716576649945,-500.0,0.00027945,14]
[327881918,1716576649955,-496.0,0.00027987,2]
[327881919,1716576649965,-151.545,0.00027987,2]
[327881920,1716576649976,-209.541,0.00027987,2]
[327881921,1716576649986,-221.76141425,0.00028,2]
[327881922,1716576649996,-500.0,0.00028219,15]
[327881923,1716576650008,-500.0,0.00028219,15]
[327881924,1716576650017,-516.99,0.00028219,15]
[327881925,1716576650027,-500.0,0.00028219,15]
[327881926,1716576650037,-572.78,0.00028219,15]
[327881927,1716576650048,-165.2,0.00028219,15]
[327881928,1716576650057,-500.0,0.00028219,15]
[327881929,1716576650067,-1733.98,0.00028219,15]
[327881930,1716576650191,-396.10149527,0.00028219,15]
[327881931,1716576650203,-500.0,0.00028219,15]
[327881932,1716576650212,-500.0,0.00028219,15]
[327881933,1716576650222,-2950.1,0.00028219,15]
[327881934,1716576650233,-947.09,0.00028219,15]
[327881935,1716576650242,-1239.82,0.00028219,15]
[327881936,1716576650251,-500.0,0.00028219,15]
[327881937,1716576650261,-602.63,0.00028219,15]
[327881938,1716576650270,-511.33,0.00028219,15]
[327881939,1716576650280,-500.0,0.00028219,15]
[327881940,1716576650289,-1229.24,0.00028219,15]
[327881941,1716576650299,-500.0,0.00028219,15]
[327881942,1716576650309,-3555.67,0.00028219,15]
[327881943,1716576650319,-500.0,0.00028219,15]
[327881944,1716576650330,-3409.17,0.00028219,15]
[327881945,1716576650340,-500.0,0.00028219,15]
[327881946,1716576650350,-592.29,0.00028219,15]
[327881947,1716576650361,-1124.78,0.00028219,15]
[327881948,1716576650372,-500.0,0.00028219,15]
[327881949,1716576650382,-151.0,0.00028314,7]
[327881950,1716576650393,-500.0,0.00028493,16]
[327881951,1716576650403,-500.0,0.00028493,16]
[327881952,1716576650412,-516.99,0.00028493,16]
[327881953,1716576650422,-500.0,0.00028493,16]
[327881954,1716576650432,-572.78,0.00028493,16]
[327881955,1716576650441,-500.0,0.00028493,16]
[327881956,1716576650451,-1733.98,0.00028493,16]
[327881957,1716576650461,-500.0,0.00028493,16]
[327881958,1716576650471,-500.0,0.00028493,16]
[327881959,1716576650480,-2950.1,0.00028493,16]
[327881960,1716576650490,-947.09,0.00028493,16]
[327881961,1716576650499,-1239.82,0.00028493,16]
[327881962,1716576650510,-500.0,0.00028493,16]
[327881963,1716576650519,-602.63,0.00028493,16]
[327881964,1716576650529,-511.33,0.00028493,16]
[327881965,1716576650538,-500.0,0.00028493,16]
[327881966,1716576650547,-1229.24,0.00028493,16]
[327881967,1716576650557,-574.54568981,0.00028493,16]
[327881968,1716576650568,-3555.67,0.00028493,16]
[327881969,1716576650577,-500.0,0.00028493,16]
[327881970,1716576650587,-3409.17,0.00028493,16]
[327881971,1716576650596,-500.0,0.00028493,16]
[327881972,1716576650606,-592.29,0.00028493,16]
[327881973,1716576650616,-1124.78,0.00028493,16]
[327881974,1716576650626,-500.0,0.00028493,16]
[327881975,1716576650635,-620.26018907,0.00028517,2]
[327881976,1716576650645,-500.0,0.00028767,17]
[327881977,1716576650657,-500.0,0.00028767,17]
[327881978,1716576650668,-516.99,0.00028767,17]
[327881979,1716576650677,-500.0,0.00028767,17]
[327881980,1716576650688,-572.78,0.00028767,17]
[327881981,1716576650698,-500.0,0.00028767,17]
[327881982,1716576650707,-1733.98,0.00028767,17]
[327881983,1716576650717,-500.0,0.00028767,17]
[327881984,1716576650727,-500.0,0.00028767,17]
[327881985,1716576650739,-2950.1,0.00028767,17]
[327881986,1716576650748,-947.09,0.00028767,17]
[327881987,1716576650759,-1239.82,0.00028767,17]
[327881988,1716576650769,-500.0,0.00028767,17]
[327881989,1716576650778,-602.63,0.00028767,17]
[327881990,1716576650788,-511.33,0.00028767,17]
[327881991,1716576650798,-500.0,0.00028767,17]
[327881992,1716576650807,-1229.24,0.00028767,17]
[327881993,1716576650817,-3555.67,0.00028767,17]
[327881994,1716576650826,-500.0,0.00028767,17]
[327881995,1716576650836,-3409.17,0.00028767,17]
[327881996,1716576650846,-500.0,0.00028767,17]
[327881997,1716576650857,-592.29,0.00028767,17]
[327881998,1716576650868,-1124.78,0.00028767,17]
[327881999,1716576650880,-500.0,0.00028767,17]
[327882000,1716576650891,-152.71459282,0.00028955,2]
[327882001,1716576650901,-154.99706553,0.00029,2]
[327882002,1716576650913,-1234.82131289,0.00029009,2]
[327882003,1716576650923,-152.71459282,0.00029024,2]
[327882004,1716576650933,-478.25448846,0.00029041,18]
[327882005,1716576650945,-500.0,0.00029041,18]
[327882006,1716576650956,-516.99,0.00029041,18]
[327882007,1716576650967,-500.0,0.00029041,18]
[327882008,1716576650976,-572.78,0.00029041,18]
[327882009,1716576650986,-500.0,0.00029041,18]
[327882010,1716576650996,-1733.98,0.00029041,18]
[327882011,1716576651006,-500.0,0.00029041,18]
[327882012,1716576651015,-500.0,0.00029041,18]
[327882013,1716576651024,-2950.1,0.00029041,18]
[327882014,1716576651036,-947.09,0.00029041,18]
[327882015,1716576651046,-1239.82,0.00029041,18]
[327882016,1716576651055,-500.0,0.00029041,18]
[327882017,1716576651064,-602.63,0.00029041,18]
[327882018,1716576651073,-511.33,0.00029041,18]
[327882019,1716576651083,-500.0,0.00029041,18]
[327882020,1716576651092,-1229.24,0.00029041,18]
[327882021,1716576651101,-3555.67,0.00029041,18]
[327882022,1716576651111,-500.0,0.00029041,18]
[327882023,1716576651120,-3409.17,0.00029041,18]
[327882024,1716576651129,-500.0,0.00029041,18]
[327882025,1716576651139,-592.29,0.00029041,18]
[327882026,1716576651147,-1124.78,0.00029041,18]
[327882027,1716576651157,-500.0,0.00029041,18]
[327882028,1716576651166,-1234.82131289,0.00029178,2]
[327882029,1716576651175,-1234.82131289,0.00029197,2]
[327882030,1716576651185,-1234.82131289,0.00029226,2]
[327882031,1716576651194,-150.81901718,0.00029265,2]
[327882032,1716576651204,-369.30767926,0.00029315,19]
[327882033,1716576651214,-516.99,0.00029315,19]
[327882034,1716576651224,-500.0,0.00029315,19]
[327882035,1716576651233,-572.78,0.00029315,19]
[327882036,1716576651243,-500.0,0.00029315,19]
[327882037,1716576651252,-1733.98,0.00029315,19]
[327882038,1716576651262,-500.0,0.00029315,19]
[327882039,1716576651270,-500.0,0.00029315,19]
[327882040,1716576651279,-2950.1,0.00029315,19]
[327882041,1716576651288,-947.09,0.00029315,19]
[327882042,1716576651298,-1239.82,0.00029315,19]
[327882043,1716576651307,-500.0,0.00029315,19]
[327882044,1716576651316,-602.63,0.00029315,19]
[327882045,1716576651326,-511.33,0.00029315,19]
[327882046,1716576651335,-500.0,0.00029315,19]
[327882047,1716576651344,-1229.24,0.00029315,19]
[327882048,1716576651354,-3555.67,0.00029315,19]
[327882049,1716576651364,-500.0,0.00029315,19]
[327882050,1716576651375,-3409.17,0.00029315,19]
[327882051,1716576651384,-500.0,0.00029315,19]
[327882052,1716576651394,-592.29,0.00029315,19]
[327882053,1716576651404,-1124.78,0.00029315,19]
[327882054,1716576651414,-553.53,0.00029315,19]
[327882055,1716576651424,-152.71459282,0.00029405,2]
[327882056,1716576651433,-152.71459282,0.0002949,2]
[327882057,1716576651442,-152.71459282,0.00029495,2]
[327882058,1716576651452,-158.65629789,0.00029503,2]
[327882059,1716576651462,-165.09678267,0.0002958,2]
[327882060,1716576651471,-516.99,0.00029589,20]
[327882061,1716576651481,-407.23110176,0.00029589,20]
[327882062,1716576651491,-572.78,0.00029589,20]
[327882063,1716576651501,-593.76,0.00029589,20]
[327882064,1716576651510,-1733.98,0.00029589,20]
[327882065,1716576651520,-500.0,0.00029589,20]
[327882066,1716576651530,-500.0,0.00029589,20]
[327882067,1716576651539,-2950.1,0.00029589,20]
[327882068,1716576651549,-947.09,0.00029589,20]
[327882069,1716576651559,-1239.82,0.00029589,20]
[327882070,1716576651568,-500.0,0.00029589,20]
[327882071,1716576651577,-602.63,0.00029589,20]
[327882072,1716576651589,-511.33,0.00029589,20]
[327882073,1716576651598,-500.0,0.00029589,20]
[327882074,1716576651608,-1229.24,0.00029589,20]
[327882075,1716576651617,-3555.67,0.00029589,20]
[327882076,1716576651627,-500.0,0.00029589,20]
[327882077,1716576651636,-3409.17,0.00029589,20]
[327882078,1716576651646,-500.0,0.00029589,20]
[327882079,1716576651655,-592.29,0.00029589,20]
[327882080,1716576651668,-1124.78,0.00029589,20]
[327882081,1716576651677,-1234.82131289,0.00029609,2]
[327882082,1716576651687,-301.63803436,0.00029757,4]
[327882083,1716576651697,-516.99,0.00029863,21]
[327882084,1716576651706,-572.78,0.00029863,21]
[327882085,1716576651716,-1733.98,0.00029863,21]
[327882086,1716576651726,-500.0,0.00029863,21]
[327882087,1716576651737,-238.09,0.00029863,21]
[327882088,1716576651958,-2950.1,0.00029863,21]
[327882089,1716576651968,-947.09,0.00029863,21]
[327882090,1716576651977,-1239.82,0.00029863,21]
[327882091,1716576651986,-500.0,0.00029863,21]
[327882092,1716576651996,-602.63,0.00029863,21]
[327882093,1716576652005,-511.33,0.00029863,21]
[327882094,1716576652014,-500.0,0.00029863,21]
[327882095,1716576652023,-1229.24,0.00029863,21]
[327882096,1716576652033,-3555.67,0.00029863,21]
[327882097,1716576652043,-500.0,0.00029863,21]
[327882098,1716576652052,-3409.17,0.00029863,21]
[327882099,1716576652062,-500.0,0.00029863,21]
[327882100,1716576652071,-592.29,0.00029863,21]
[327882101,1716576652081,-1124.78,0.00029863,21]
[327882102,1716576652090,-152.65713131,0.00029866,2]
[327882103,1716576652099,-152.65713131,0.0002987,2]
[327882104,1716576652110,-153.0,0.00029876,2]
[327882105,1716576652119,-1234.82131289,0.00029932,2]
[327882106,1716576652129,-165.09678267,0.0002994,2]
[327882107,1716576652138,-500.0,0.00029962,2]
[327882108,1716576652147,-152.71459282,0.00029969,2]
[327882109,1716576652156,-17243.67081528,0.0003,10]
[327882110,1716576652165,-154.82968734,0.0003,4]
[327882111,1716576652174,-18219.02878601,0.0003,2]
[327882112,1716576652183,-600.0,0.0003,2]
[327882113,1716576652192,-783.85662241,0.0003,4]
[327882114,1716576652201,-5999.99,0.0003,2]
[327882115,1716576652210,-465.65005523,0.0003,30]
[327882116,1716576652220,-279.08332303,0.0003,2]
[327882117,1716576652229,-214.62413635,0.0003,4]
[327882118,1716576652238,-2000.000001,0.0003,4]
[327882119,1716576652247,-7513.15784686,0.0003,2]
[327882120,1716576652256,-776.13829252,0.0003,2]
[327882121,1716576652266,-1500.0,0.0003,2]
[327882122,1716576652275,-1210.78934384,0.0003,3]
[327882123,1716576652284,-289.68,0.0003,2]
[327882124,1716576652293,-268.0,0.0003,2]
[327882125,1716576652303,-1210.66841003,0.0003,3]
[327882126,1716576652312,-152.71459282,0.00030001,7]
[327882127,1716576652322,-165.09678267,0.00030006,7]
[327882128,1716576652331,-152.71459282,0.00030032,7]
[327882129,1716576652340,-1234.82131289,0.00030064,7]
[327882130,1716576652349,-152.71459282,0.00030102,7]
[327882131,1716576652358,-165.09678267,0.00030122,7]
[327882132,1716576652367,-516.99,0.00030136,22]
[327882133,1716576652376,-572.78,0.00030136,22]
[327882134,1716576652387,-1733.98,0.00030136,22]
[327882135,1716576652397,-533.63519555,0.00030136,22]
[327882136,1716576652407,-2950.1,0.00030136,22]
[327882137,1716576652417,-947.09,0.00030136,22]
[327882138,1716576652427,-1239.82,0.00030136,22]
[327882139,1716576652437,-224.5316035,0.00030136,22]
[327882140,1716576652447,-602.63,0.00030136,22]
[327882141,1716576652458,-151.0,0.00030136,2]
[327882142,1716576652467,-511.33,0.00030136,22]
[327882143,1716576652476,-180.360885,0.00030136,2]
[327882144,1716576652485,-180.360885,0.00030136,2]
[327882145,1716576652494,-500.0,0.00030136,22]
[327882146,1716576652504,-151.0,0.00030136,2]
[327882147,1716576652514,-511.291766,0.00030136,2]
[327882148,1716576652523,-511.291766,0.00030136,2]
[327882149,1716576652532,-1229.24,0.00030136,22]
[327882150,1716576652541,-151.0,0.00030136,2]
[327882151,1716576652551,-151.0,0.00030136,2]
[327882152,1716576652560,-3555.67,0.00030136,22]
[327882153,1716576652570,-500.0,0.00030136,22]
[327882154,1716576652581,-3409.17,0.00030136,22]
[327882155,1716576652590,-500.0,0.00030136,22]
[327882156,1716576652599,-592.29,0.00030136,22]
[327882157,1716576652610,-1124.78,0.00030136,21]
[327882158,1716576652619,-300.12522202,0.0003015,120]
[327882159,1716576652629,-1234.82131289,0.00030151,7]
[327882160,1716576652640,-1234.82131289,0.00030184,7]
[327882161,1716576652654,-603.27606872,0.00030257,7]
[327882162,1716576652665,-152.71459282,0.00030259,7]
[327882163,1716576652675,-1234.82131289,0.0003027,7]
[327882164,1716576652684,-152.71459282,0.00030307,7]
[327882165,1716576652694,-550.72291,0.0003031,2]
[327882166,1716576652703,-501.15,0.00030315,2]
[327882167,1716576652712,-500.0,0.00030315,2]
[327882168,1716576652721,-1234.82131289,0.00030399,7]
[327882169,1716576652734,-300.0,0.000304,3]
[327882170,1716576652744,-12396.08127661,0.0003041,11]
[327882171,1716576652754,-516.99,0.0003041,23]
[327882172,1716576652763,-572.78,0.0003041,23]
[327882173,1716576652774,-157.898362,0.0003041,2]
[327882174,1716576652783,-151.0,0.0003041,2]
[327882175,1716576652793,-151.0,0.0003041,2]
[327882176,1716576652802,-151.0,0.0003041,2]
[327882177,1716576652841,-1733.98,0.0003041,23]
[327882178,1716576652852,-151.0,0.0003041,2]
[327882179,1716576652862,-2950.1,0.0003041,23]
[327882180,1716576652871,-151.0,0.0003041,2]
[327882181,1716576652881,-151.0,0.0003041,2]
[327882182,1716576652890,-151.0,0.0003041,2]
[327882183,1716576652899,-947.09,0.0003041,23]
[327882184,1716576652908,-1239.82,0.0003041,23]
[327882185,1716576652918,-602.63,0.0003041,23]
[327882186,1716576652926,-158.121235,0.0003041,2]
[327882187,1716576652936,-158.121235,0.0003041,2]
[327882188,1716576652945,-511.33,0.0003041,23]
[327882189,1716576652955,-209.78221202,0.0003041,23]
[327882190,1716576652964,-1229.24,0.0003041,23]
[327882191,1716576652973,-3555.67,0.0003041,23]
[327882192,1716576652982,-646.08480575,0.0003041,23]
[327882193,1716576652991,-3409.17,0.0003041,23]
[327882194,1716576653000,-500.0,0.0003041,23]
[327882195,1716576653010,-592.29,0.0003041,23]
[327882196,1716576653019,-1124.78,0.0003041,21]
[327882197,1716576653028,-417.57091557,0.00030421,2]
[327882198,1716576653037,-1234.82131289,0.00030422,7]
[327882199,1716576653047,-4226.56801723,0.00030426,2]
[327882200,1716576653056,-1234.82131289,0.00030443,7]
[327882201,1716576653065,-1234.82131289,0.00030458,7]
[327882202,1716576653074,-1234.82131289,0.00030496,7]
[327882203,1716576653084,-151.0,0.00030496,2]
[327882204,1716576653093,-3132.899824,0.00030496,2]
[327882205,1716576653102,-3132.899824,0.00030496,2]
[327882206,1716576653111,-151.0,0.00030496,2]
[327882207,1716576653121,-1234.82131289,0.000305,7]
[327882208,1716576653130,-3158.43849823,0.0003051,120]
[327882209,1716576653139,-1402.79084811,0.0003059,3]
[327882210,1716576653150,-307.3427078,0.00030605,2]
[327882211,1716576653159,-153.0,0.00030605,2]
[327882212,1716576653168,-153.0,0.00030605,2]
[327882213,1716576653177,-356.8077003,0.00030605,2]
[327882214,1716576653187,-153.0,0.00030605,2]
[327882215,1716576653196,-153.0,0.00030605,2]
[327882216,1716576653205,-152.71459282,0.00030679,7]
[327882217,1716576653214,-516.99,0.00030684,24]
[327882218,1716576653223,-572.78,0.00030684,24]
[327882219,1716576653232,-1733.98,0.00030684,24]
[327882220,1716576653241,-2950.1,0.00030684,24]
[327882221,1716576653250,-947.09,0.00030684,24]
[327882222,1716576653262,-1239.82,0.00030684,24]
[327882223,1716576653272,-602.63,0.00030684,24]
[327882224,1716576653281,-511.33,0.00030684,24]
[327882225,1716576653290,-1229.24,0.00030684,24]
[327882226,1716576653299,-3555.67,0.00030684,24]
[327882227,1716576653308,-3409.17,0.00030684,24]
[327882228,1716576653318,-554.92812072,0.00030684,24]
[327882229,1716576653327,-592.29,0.00030684,24]
[327882230,1716576653336,-1124.78,0.00030684,21]
[327882231,1716576653345,-165.09678267,0.00030717,7]
[327882232,1716576653354,-152.71459282,0.00030773,7]
[327882233,1716576653363,-152.71459282,0.00030788,7]
[327882234,1716576653372,-153.0,0.00030799,2]
[327882235,1716576653381,-153.0,0.00030799,2]
[327882236,1716576653390,-1234.82131289,0.00030822,7]
[327882237,1716576653400,-153.0,0.00030835,2]
[327882238,1716576653409,-153.0,0.00030835,2]
[327882239,1716576653418,-153.0,0.00030835,2]
[327882240,1716576653427,-205.61866187,0.000309,2]
[327882241,1716576653436,-438.88815954,0.000309,2]
[327882242,1716576653445,-438.88815954,0.000309,2]
[327882243,1716576653454,-438.88815954,0.000309,2]
[327882244,1716576653463,-438.88815954,0.000309,2]
[327882245,1716576653473,-438.88815954,0.000309,2]
[327882246,1716576653482,-438.88815954,0.000309,2]
[327882247,1716576653492,-438.88815954,0.000309,2]
[327882248,1716576653502,-228.64707611,0.000309,4]
[327882249,1716576653512,-151.0,0.000309,4]
[327882250,1716576653521,-151.0,0.000309,2]
[327882251,1716576653530,-151.0,0.000309,2]
[327882252,1716576653539,-151.0,0.000309,2]
[327882253,1716576653550,-151.0,0.000309,2]
[327882254,1716576653559,-151.0,0.000309,2]
[327882255,1716576653569,-153.405585,0.000309,2]
[327882256,1716576653578,-151.0,0.000309,2]
[327882257,1716576653588,-349.632738,0.000309,2]
[327882258,1716576653598,-349.632738,0.000309,2]
[327882259,1716576653607,-27303.27758056,0.000309,2]
[327882260,1716576653617,-269.66301449,0.000309,2]
[327882261,1716576653626,-1824.83110949,0.00030958,2]
[327882262,1716576653635,-516.99787271,0.00030958,25]
[327882263,1716576653644,-232.550336,0.00030958,2]
[327882264,1716576653655,-232.550336,0.00030958,2]
[327882265,1716576653666,-151.0,0.00030958,2]
[327882266,1716576653675,-151.0,0.00030958,2]
[327882267,1716576653685,-151.0,0.00030958,2]
[327882268,1716576653695,-151.0,0.00030958,2]
[327882269,1716576653704,-151.0,0.00030958,2]
[327882270,1716576653714,-251.913427,0.00030958,2]
[327882271,1716576653723,-251.913427,0.00030958,2]
[327882272,1716576653736,-572.91153127,0.00030958,25]
[327882273,1716576653746,-1734.11405244,0.00030958,25]
[327882274,1716576653758,-2950.19220628,0.00030958,25]
[327882275,1716576653767,-947.25938359,0.00030958,25]
[327882276,1716576653777,-1239.87505404,0.00030958,25]
[327882277,1716576653787,-602.65652864,0.00030958,25]
[327882278,1716576653796,-511.45594837,0.00030958,25]
[327882279,1716576653806,-1229.26403037,0.00030958,25]
[327882280,1716576653816,-3555.81373283,0.00030958,25]
[327882281,1716576653825,-3409.21803224,0.00030958,25]
[327882282,1716576653835,-592.45887249,0.00030958,25]
[327882283,1716576653844,-1124.84528134,0.00030958,21]
[327882284,1716576653854,-1000.0,0.00031,22]
[327882285,1716576653863,-600.8065,0.00031,2]
[327882286,1716576653872,-156931.33235688,0.00031,2]
[327882287,1716576653881,-18956.8795377,0.00031,5]
[327882288,1716576653891,-1516.96436264,0.00031,2]
[327882289,1716576653900,-1973.68350076,0.00031,2]
[327882290,1716576653909,-500.0,0.00031,120]
[327882291,1716576653919,-151.0,0.00031,2]
[327882292,1716576653928,-151.0,0.00031,2]
[327882293,1716576653937,-151.0,0.00031,2]
[327882294,1716576653947,-2500.0,0.00031,2]
[327882295,1716576653956,-800.800899,0.00031,2]
[327882296,1716576653965,-800.800899,0.00031,2]
[327882297,1716576653975,-151.0,0.00031,2]
[327882298,1716576653984,-151.0,0.00031,2]
[327882299,1716576653993,-151.0,0.00031,2]
[327882300,1716576654004,-2688.83662253,0.00031,7]
[327882301,1716576654013,-10000.0,0.00031,7]
[327882302,1716576654022,-16287.00953897,0.00031,7]
[327882303,1716576654031,-813.06381662,0.00031,7]
[327882304,1716576654041,-151.0,0.00031,2]
[327882305,1716576654050,-151.0,0.00031,2]
[327882306,1716576654060,-151.0,0.00031,2]
[327882307,1716576654069,-179.74028503,0.00031,2]
[327882308,1716576654078,-179.74028,0.00031,2]
[327882309,1716576654088,-151.0,0.00031,2]
[327882310,1716576654098,-178.714804,0.00031,2]
[327882311,1716576654107,-151.0,0.00031,2]
[327882312,1716576654117,-158.121235,0.00031,2]
[327882313,1716576654127,-158.121235,0.00031,2]
[327882314,1716576654136,-151.0,0.00031,2]
[327882315,1716576654145,-180.360885,0.00031,2]
[327882316,1716576654155,-180.360885,0.00031,2]
[327882317,1716576654165,-151.0,0.00031,2]
[327882318,1716576654174,-511.291766,0.00031,2]
[327882319,1716576654184,-511.291766,0.00031,2]
[327882320,1716576654193,-151.0,0.00031,2]
[327882321,1716576654203,-151.0,0.00031,2]
[327882322,1716576654214,-151.0,0.00031,2]
[327882323,1716576654224,-3132.899824,0.00031,2]
[327882324,1716576654234,-3132.899824,0.00031,2]
[327882325,1716576654243,-151.0,0.00031,2]
[327882326,1716576654253,-1234.82131289,0.00031013,7]
[327882327,1716576654264,-1206.55213744,0.00031023,30]
[327882328,1716576654274,-1234.82131289,0.00031089,7]
[327882329,1716576654284,-156.3060521,0.00031105,7]
[327882330,1716576654293,-152.71459282,0.00031125,7]
[327882331,1716576654303,-1234.82131289,0.00031248,7]
[327882332,1716576654314,-151.0,0.00031248,2]
[327882333,1716576654324,-151.0,0.00031248,2]
[327882334,1716576654334,-349.632738,0.00031248,2]
[327882335,1716576654344,-349.632738,0.00031248,2]
[327882336,1716576654353,-152.65713131,0.00031262,7]
[327882337,1716576654364,-153.0,0.00031382,2]
[327882338,1716576654373,-153.0,0.00031382,2]
[327882339,1716576654383,-153.0,0.00031382,2]
[327882340,1716576654392,-153.0,0.00031382,2]
[327882341,1716576654402,-153.0,0.00031382,2]
[327882342,1716576654411,-300.0,0.000314,4]
[327882343,1716576654422,-232.550336,0.000314,2]
[327882344,1716576654432,-232.550336,0.000314,2]
[327882345,1716576654441,-151.0,0.000314,2]
[327882346,1716576654451,-151.0,0.000314,2]
[327882347,1716576654461,-151.0,0.000314,2]
[327882348,1716576654470,-151.0,0.000314,2]
[327882349,1716576654480,-251.913427,0.000314,2]
[327882350,1716576654490,-251.913427,0.000314,2]
[327882351,1716576654499,-3000.0,0.000315,8]
[327882352,1716576654510,-3000.0,0.0003151,8]
[327882353,1716576654520,-3000.0,0.0003152,8]
[327882354,1716576654530,-3000.0,0.0003153,8]
[327882355,1716576654540,-3000.0,0.0003154,8]
[327882356,1716576654550,-3000.0,0.0003155,8]
[327882357,1716576654560,-3000.0,0.0003156,8]
[327882358,1716576654569,-3000.0,0.0003157,8]
[327882359,1716576654579,-3000.0,0.0003158,8]
[327882360,1716576654588,-1234.82131289,0.00031586,7]
[327882361,1716576654598,-174.945841,0.0003159,2]
[327882362,1716576654614,-174.945841,0.0003159,2]
[327882363,1716576654624,-3000.0,0.0003159,8]
[327882364,1716576654633,-3000.0,0.000316,8]
[327882365,1716576654643,-3000.0,0.0003161,8]
[327882366,1716576654657,-3000.0,0.0003162,8]
[327882367,1716576654667,-3000.0,0.0003163,8]
[327882368,1716576654676,-3000.0,0.0003164,8]
[327882369,1716576654687,-3000.0,0.0003165,8]
[327882370,1716576654698,-3000.0,0.0003166,9]
[327882371,1716576654708,-3000.0,0.0003167,9]
[327882372,1716576654719,-3000.0,0.0003168,9]
[327882373,1716576654729,-3000.0,0.0003169,9]
[327882374,1716576654739,-3000.0,0.000317,9]
[327882375,1716576654749,-3000.0,0.0003171,9]
[327882376,1716576654759,-3000.0,0.0003172,9]
[327882377,1716576654770,-3000.0,0.0003173,9]
[327882378,1716576654780,-3000.0,0.0003174,9]
[327882379,1716576654789,-3000.0,0.0003175,9]
[327882380,1716576654799,-3000.0,0.0003176,9]
[327882381,1716576654809,-3000.0,0.0003177,9]
[327882382,1716576654819,-1234.82131289,0.00031773,7]
[327882383,1716576654829,-3000.0,0.0003178,9]